[Event "Late-Titled-Tuesday-Blitz-September-05-2023"]
[Site "Chess.com"]
[Date "2023.09.05"]
[Round "10"]
[White "Firouzja2003"]
[Black "nihalsarin"]
[Result "1-0"]
[WhiteElo "3148"]
[BlackElo "3144"]
[TimeControl "180+1"]
[EndTime "15:57:07 PDT"]
[Termination "Firouzja2003 won by resignation"]

1. e4 {[%clk 0:03:00.9]} 1... c6 {[%clk 0:02:58.8]} 2. d4 {[%clk 0:02:59.4]}
2... d5 {[%clk 0:02:59.4]} 3. e5 {[%clk 0:02:59.2]} 3... Bf5 {[%clk 0:02:57.8]}
4. Nf3 {[%clk 0:02:59.7]} 4... e6 {[%clk 0:02:55.4]} 5. Be2 {[%clk 0:03:00.4]}
5... Bb4+ {[%clk 0:02:51.9]} 6. Nbd2 {[%clk 0:02:56.3]} 6... Nd7 {[%clk
0:02:51.7]} 7. O-O {[%clk 0:02:56.5]} 7... f6 {[%clk 0:02:48.6]} 8. Nb3 {[%clk
0:02:52.6]} 8... Nh6 {[%clk 0:02:35.5]} 9. Bxh6 {[%clk 0:02:37.9]} 9... gxh6
{[%clk 0:02:36.4]} 10. Nh4 {[%clk 0:02:38.5]} 10... Bg6 {[%clk 0:02:32]} 11. Bh5
{[%clk 0:02:30.7]} 11... Rg8 {[%clk 0:01:59.4]} 12. c3 {[%clk 0:01:58.7]} 12...
Bf8 {[%clk 0:01:51]} 13. exf6 {[%clk 0:00:28]} 13... Qxf6 {[%clk 0:01:50.8]} 14.
Nxg6 {[%clk 0:00:26.7]} 14... hxg6 {[%clk 0:01:51.7]} 15. Bg4 {[%clk 0:00:27.4]}
15... O-O-O {[%clk 0:01:37]} 16. Re1 {[%clk 0:00:27.7]} 16... Re8 {[%clk
0:01:34.3]} 17. Re3 {[%clk 0:00:24]} 17... h5 {[%clk 0:01:20.7]} 18. Bh3 {[%clk
0:00:24.2]} 18... Bh6 {[%clk 0:01:18.1]} 19. Rf3 {[%clk 0:00:11]} 19... Qe7
{[%clk 0:00:50.5]} 20. Qe2 {[%clk 0:00:10.9]} 20... g5 {[%clk 0:00:50.6]} 21. g4
{[%clk 0:00:11.2]} 21... e5 {[%clk 0:00:42.5]} 22. Rf5 {[%clk 0:00:10.5]} 22...
e4 {[%clk 0:00:34.7]} 23. c4 {[%clk 0:00:10.8]} 23... dxc4 {[%clk 0:00:30]} 24.
Nd2 {[%clk 0:00:10.7]} 24... hxg4 {[%clk 0:00:24.8]} 25. Bxg4 {[%clk 0:00:10.7]}
25... Kb8 {[%clk 0:00:25]} 26. Nxc4 {[%clk 0:00:10.9]} 26... Nf6 {[%clk
0:00:25]} 27. Ne5 {[%clk 0:00:11]} 27... Nd5 {[%clk 0:00:21.5]} 28. Qxe4 {[%clk
0:00:10.8]} 28... Ka8 {[%clk 0:00:18.5]} 29. Re1 {[%clk 0:00:11]} 29... Qb4
{[%clk 0:00:18.2]} 30. Rf7 {[%clk 0:00:10.9]} 30... Nf4 {[%clk 0:00:16.3]} 31.
a3 {[%clk 0:00:10]} 31... Qb3 {[%clk 0:00:14.4]} 32. Re3 {[%clk 0:00:04.9]}
32... Rxe5 {[%clk 0:00:10.8]} 33. Qh7 {[%clk 0:00:04]} 33... Rd8 {[%clk
0:00:04.9]} 34. Rxe5 {[%clk 0:00:01.3]} 34... Qxb2 {[%clk 0:00:05.6]} 35. Rxf4
{[%clk 0:00:01.9]} 35... Qc1+ {[%clk 0:00:04.2]} 36. Kg2 {[%clk 0:00:02.4]}
36... Qxf4 {[%clk 0:00:05.1]} 37. h3 {[%clk 0:00:02.8]} 37... Qxd4 {[%clk
0:00:03.8]} 38. Re7 {[%clk 0:00:03.2]} 38... Bf8 {[%clk 0:00:03]} 39. Rxb7
{[%clk 0:00:03.5]} 39... Bc5 {[%clk 0:00:03.8]} 40. Rf7 {[%clk 0:00:03.5]} 40...
Qd5+ {[%clk 0:00:03.8]} 41. Bf3 {[%clk 0:00:04]} 41... Qd6 {[%clk 0:00:04.1]}
42. Qf5 {[%clk 0:00:04.1]} 42... Kb8 {[%clk 0:00:02.7]} 43. Rf6 {[%clk
0:00:04.1]} 43... Qd4 {[%clk 0:00:03.1]} 44. Bxc6 {[%clk 0:00:04.1]} 44... Bb6
{[%clk 0:00:02.6]} 45. Be4 {[%clk 0:00:03.8]} 45... Rd6 {[%clk 0:00:02]} 46.
Rf8+ {[%clk 0:00:03.6]} 46... Rd8 {[%clk 0:00:02.8]} 47. Rf7 {[%clk 0:00:04.1]}
47... Bc7 {[%clk 0:00:02.1]} 48. Qb5+ {[%clk 0:00:04.2]} 48... Qb6 {[%clk
0:00:02.5]} 49. Qf5 {[%clk 0:00:02.8]} 49... Qd6 {[%clk 0:00:02.4]} 50. Qb5+
{[%clk 0:00:01.8]} 50... Qb6 {[%clk 0:00:03.1]} 51. Qxb6+ {[%clk 0:00:02.5]}
51... axb6 {[%clk 0:00:03.3]} 52. Rf5 {[%clk 0:00:02.8]} 52... Rg8 {[%clk
0:00:03]} 53. Bd5 {[%clk 0:00:03.1]} 53... Re8 {[%clk 0:00:02.1]} 54. Rxg5
{[%clk 0:00:03.4]} 54... Bd6 {[%clk 0:00:02.8]} 55. a4 {[%clk 0:00:03.5]} 55...
Bc5 {[%clk 0:00:03.2]} 56. Rf5 {[%clk 0:00:03.2]} 56... Rf8 {[%clk 0:00:02.2]}
57. Rxf8+ {[%clk 0:00:02.9]} 57... Bxf8 {[%clk 0:00:03.1]} 58. f4 {[%clk
0:00:03.1]} 58... Kc7 {[%clk 0:00:03.8]} 59. Kf3 {[%clk 0:00:03.7]} 59... Kd6
{[%clk 0:00:04.6]} 60. Bc4 {[%clk 0:00:04.2]} 60... Ke7 {[%clk 0:00:05.3]} 61.
Ke4 {[%clk 0:00:02.6]} 61... Kf6 {[%clk 0:00:05.9]} 62. h4 {[%clk 0:00:02.5]}
62... Bb4 {[%clk 0:00:06.3]} 63. Be2 {[%clk 0:00:02.8]} 63... Bd2 {[%clk
0:00:06.9]} 64. h5 {[%clk 0:00:03.3]} 64... Ba5 {[%clk 0:00:07.2]} 65. Bg4
{[%clk 0:00:03.6]} 65... Bd2 {[%clk 0:00:07.6]} 66. f5 {[%clk 0:00:03.4]} 66...
Bh6 {[%clk 0:00:07.3]} 67. Kd5 {[%clk 0:00:03.7]} 67... Bd2 {[%clk 0:00:07.1]}
68. Kc6 {[%clk 0:00:03.9]} 68... Be3 {[%clk 0:00:07.6]} 69. h6 {[%clk
0:00:03.8]} 69... Bf2 {[%clk 0:00:04]} 70. Bh3 {[%clk 0:00:01.8]} 70... Be3
{[%clk 0:00:03.8]} 71. Bg4 {[%clk 0:00:01.7]} 71... Bf2 {[%clk 0:00:04.1]} 72.
Kd7 {[%clk 0:00:02.1]} 72... Be3 {[%clk 0:00:03.1]} 73. h7 {[%clk 0:00:02.7]}
73... Kg7 {[%clk 0:00:03.4]} 74. f6+ {[%clk 0:00:03.2]} 74... Kxh7 {[%clk
0:00:04.1]} 75. Ke8 {[%clk 0:00:01.5]} 75... Bc5 {[%clk 0:00:03.7]} 76. Bf5+
{[%clk 0:00:01.5]} 76... Kh6 {[%clk 0:00:04.1]} 77. Be4 {[%clk 0:00:01.7]} 77...
Bb4 {[%clk 0:00:03.9]} 78. Bd3 {[%clk 0:00:02.2]} 78... Bc5 {[%clk 0:00:04.2]}
79. Kf7 {[%clk 0:00:02]} 79... Bb4 {[%clk 0:00:04.4]} 80. Kg8 {[%clk 0:00:02.4]}
80... Kg5 {[%clk 0:00:01.8]} 81. f7 {[%clk 0:00:03]} 81... Kf6 {[%clk
0:00:02.5]} 82. f8=Q+ {[%clk 0:00:02.9]} 82... Bxf8 {[%clk 0:00:03.2]} 83. Kxf8
{[%clk 0:00:03.8]} 1-0

[Event "Late-Titled-Tuesday-Blitz-September-05-2023"]
[Site "Chess.com"]
[Date "2023.09.05"]
[Round "10"]
[White "NelsonLinda"]
[Black "IlanSchnaider"]
[Result "1-0"]
[WhiteElo "2527"]
[BlackElo "2726"]
[TimeControl "180+1"]
[EndTime "15:57:16 PDT"]
[Termination "NelsonLinda won by checkmate"]

1. b3 {[%clk 0:02:14.8]} 1... Nf6 {[%clk 0:02:55.2]} 2. Bb2 {[%clk 0:02:14.5]}
2... d5 {[%clk 0:02:55.9]} 3. g3 {[%clk 0:02:13.6]} 3... c5 {[%clk 0:02:56.3]}
4. Bg2 {[%clk 0:02:14]} 4... Nc6 {[%clk 0:02:56.9]} 5. Nf3 {[%clk 0:02:14.4]}
5... g6 {[%clk 0:02:56.7]} 6. O-O {[%clk 0:02:14.5]} 6... Bg7 {[%clk 0:02:57.4]}
7. d3 {[%clk 0:02:15]} 7... O-O {[%clk 0:02:57.8]} 8. Nbd2 {[%clk 0:02:15.7]}
8... Bg4 {[%clk 0:02:57.9]} 9. h3 {[%clk 0:02:15.4]} 9... Bxf3 {[%clk 0:02:58]}
10. Nxf3 {[%clk 0:02:16.3]} 10... Qc7 {[%clk 0:02:56.8]} 11. Re1 {[%clk
0:01:52.5]} 11... Rad8 {[%clk 0:02:53.8]} 12. Qc1 {[%clk 0:01:51.9]} 12... e5
{[%clk 0:02:46.7]} 13. e3 {[%clk 0:01:52.2]} 13... Rfe8 {[%clk 0:02:45.5]} 14.
Nd2 {[%clk 0:01:52.2]} 14... b6 {[%clk 0:02:40.7]} 15. a3 {[%clk 0:01:52.8]}
15... a5 {[%clk 0:02:40.2]} 16. c4 {[%clk 0:01:52.5]} 16... d4 {[%clk
0:02:38.9]} 17. Ne4 {[%clk 0:01:37.9]} 17... Nxe4 {[%clk 0:02:37.7]} 18. Bxe4
{[%clk 0:01:37.2]} 18... dxe3 {[%clk 0:02:37.4]} 19. Qxe3 {[%clk 0:01:35.6]}
19... Nd4 {[%clk 0:02:36.5]} 20. Bxd4 {[%clk 0:01:34.3]} 20... Rxd4 {[%clk
0:02:33.7]} 21. a4 {[%clk 0:01:29.9]} 21... f5 {[%clk 0:02:29.7]} 22. Bd5+
{[%clk 0:01:23.3]} 22... Kh8 {[%clk 0:02:30.1]} 23. Rad1 {[%clk 0:01:23]} 23...
h6 {[%clk 0:02:29.4]} 24. Qf3 {[%clk 0:01:20.3]} 24... Kh7 {[%clk 0:02:28.8]}
25. Re3 {[%clk 0:01:18.8]} 25... Qe7 {[%clk 0:02:20]} 26. Rde1 {[%clk
0:01:18.8]} 26... Qf6 {[%clk 0:02:19.5]} 27. h4 {[%clk 0:01:15.5]} 27... h5
{[%clk 0:02:12.9]} 28. Qe2 {[%clk 0:01:12.2]} 28... Rg4 {[%clk 0:02:07.3]} 29.
Bf3 {[%clk 0:00:58.1]} 29... Rd4 {[%clk 0:02:01.6]} 30. Bd5 {[%clk 0:00:58]}
30... Re7 {[%clk 0:01:56.2]} 31. Kg2 {[%clk 0:00:53.6]} 31... Kh8 {[%clk
0:01:29.9]} 32. f4 {[%clk 0:00:48.2]} 32... e4 {[%clk 0:01:21.4]} 33. dxe4
{[%clk 0:00:48]} 33... fxe4 {[%clk 0:01:20.8]} 34. Bxe4 {[%clk 0:00:32.8]} 34...
Qd6 {[%clk 0:01:20.7]} 35. Bd5 {[%clk 0:00:31.5]} 35... Rxe3 {[%clk 0:01:00.8]}
36. Qxe3 {[%clk 0:00:32.4]} 36... Kh7 {[%clk 0:01:01.1]} 37. Re2 {[%clk
0:00:31]} 37... Rd1 {[%clk 0:00:56.4]} 38. Qf3 {[%clk 0:00:30.6]} 38... Qf6
{[%clk 0:00:53.9]} 39. Be4 {[%clk 0:00:21.6]} 39... Kh8 {[%clk 0:00:49.1]} 40.
Bc2 {[%clk 0:00:20.6]} 40... Rd8 {[%clk 0:00:40.2]} 41. f5 {[%clk 0:00:20.7]}
41... Rf8 {[%clk 0:00:34.3]} 42. Be4 {[%clk 0:00:20.9]} 42... Qd4 {[%clk
0:00:29.4]} 43. Bc2 {[%clk 0:00:12.5]} 43... Qd6 {[%clk 0:00:21.5]} 44. Rf2
{[%clk 0:00:06.8]} 44... Bd4 {[%clk 0:00:21.1]} 45. Re2 {[%clk 0:00:07.1]} 45...
Be5 {[%clk 0:00:19.6]} 46. Qd3 {[%clk 0:00:03.5]} 46... Qc6+ {[%clk 0:00:19.1]}
47. Qe4 {[%clk 0:00:03.3]} 47... Qxe4+ {[%clk 0:00:18.9]} 48. Rxe4 {[%clk
0:00:04.2]} 48... Rxf5 {[%clk 0:00:19.4]} 49. Re2 {[%clk 0:00:04]} 49... Rf6
{[%clk 0:00:06.5]} 50. Rxe5 {[%clk 0:00:04.2]} 50... Rd6 {[%clk 0:00:07.4]} 51.
Rd5 {[%clk 0:00:04.3]} 51... Re6 {[%clk 0:00:07.4]} 52. Kf3 {[%clk 0:00:04.6]}
52... Kg7 {[%clk 0:00:06.6]} 53. Rd7+ {[%clk 0:00:04.3]} 53... Kh6 {[%clk
0:00:05.3]} 54. Rd2 {[%clk 0:00:03.6]} 54... Rf6+ {[%clk 0:00:05.6]} 55. Ke3
{[%clk 0:00:03.4]} 55... Re6+ {[%clk 0:00:06.1]} 56. Be4 {[%clk 0:00:03.9]}
56... Re5 {[%clk 0:00:05.6]} 57. Kf4 {[%clk 0:00:03.7]} 57... Re6 {[%clk
0:00:05.8]} 58. Rd5 {[%clk 0:00:04]} 58... Rf6+ {[%clk 0:00:05.7]} 59. Ke3
{[%clk 0:00:04.6]} 59... Re6 {[%clk 0:00:05.7]} 60. Rg5 {[%clk 0:00:04.7]} 60...
Kg7 {[%clk 0:00:03.3]} 61. Kf4 {[%clk 0:00:04.4]} 61... Rf6+ {[%clk 0:00:01.9]}
62. Ke5 {[%clk 0:00:04.9]} 62... Kf7 {[%clk 0:00:01.9]} 63. Bd5+ {[%clk
0:00:04.5]} 63... Ke7 {[%clk 0:00:02.1]} 64. Be4 {[%clk 0:00:05]} 64... Re6+
{[%clk 0:00:02.5]} 65. Kf4 {[%clk 0:00:03.8]} 65... Rf6+ {[%clk 0:00:03.1]} 66.
Ke3 {[%clk 0:00:04.4]} 66... Kf7 {[%clk 0:00:03.9]} 67. Bd5+ {[%clk 0:00:04.6]}
67... Kg7 {[%clk 0:00:04.1]} 68. Re5 {[%clk 0:00:05]} 68... Kh6 {[%clk 0:00:04]}
69. Re6 {[%clk 0:00:05.5]} 69... Rf1 {[%clk 0:00:04.1]} 70. Be4 {[%clk 0:00:06]}
70... Kh7 {[%clk 0:00:03.1]} 71. Bxg6+ {[%clk 0:00:05.9]} 71... Kg7 {[%clk
0:00:03.6]} 72. Be4 {[%clk 0:00:06]} 72... Re1+ {[%clk 0:00:03.9]} 73. Kf2
{[%clk 0:00:05.7]} 73... Rc1 {[%clk 0:00:03.9]} 74. Rxb6 {[%clk 0:00:05.5]}
74... Rc3 {[%clk 0:00:04.6]} 75. Bf3 {[%clk 0:00:05.4]} 75... Rc2+ {[%clk
0:00:04.6]} 76. Be2 {[%clk 0:00:05.5]} 76... Rc3 {[%clk 0:00:05.5]} 77. Bxh5
{[%clk 0:00:05.7]} 77... Kh7 {[%clk 0:00:04.4]} 78. Be2 {[%clk 0:00:06.2]} 78...
Kg7 {[%clk 0:00:03.9]} 79. h5 {[%clk 0:00:06.8]} 79... Kh7 {[%clk 0:00:04.1]}
80. g4 {[%clk 0:00:06.8]} 80... Rh3 {[%clk 0:00:04.1]} 81. g5 {[%clk 0:00:07.3]}
81... Rh2+ {[%clk 0:00:04.1]} 82. Ke3 {[%clk 0:00:07.6]} 82... Rh3+ {[%clk
0:00:04.7]} 83. Bf3 {[%clk 0:00:08]} 83... Rh4 {[%clk 0:00:04.9]} 84. Rb7+
{[%clk 0:00:08.3]} 84... Kg8 {[%clk 0:00:05.3]} 85. g6 {[%clk 0:00:08.8]} 85...
Kf8 {[%clk 0:00:04.8]} 86. g7+ {[%clk 0:00:08.6]} 86... Kg8 {[%clk 0:00:04.1]}
87. Bd5+ {[%clk 0:00:09.2]} 87... Kh7 {[%clk 0:00:04.6]} 88. g8=Q+ {[%clk
0:00:09.5]} 88... Kh6 {[%clk 0:00:01.3]} 89. Rh7# {[%clk 0:00:10.2]} 1-0

[Event "Late-Titled-Tuesday-Blitz-September-05-2023"]
[Site "Chess.com"]
[Date "2023.09.05"]
[Round "11"]
[White "IMSlavin"]
[Black "Garmendiarov"]
[Result "1-0"]
[WhiteElo "2199"]
[BlackElo "2341"]
[TimeControl "180+1"]
[EndTime "16:01:20 PDT"]
[Termination "IMSlavin won by resignation"]

1. e4 {[%clk 0:02:59.8]} 1... c5 {[%clk 0:02:59.8]} 2. g3 {[%clk 0:02:59.1]}
2... d6 {[%clk 0:03:00.4]} 3. Bg2 {[%clk 0:02:59.5]} 3... Nc6 {[%clk 0:03:00.3]}
4. Ne2 {[%clk 0:03:00.1]} 4... g6 {[%clk 0:03:00.8]} 5. O-O {[%clk 0:03:01]}
5... Bg7 {[%clk 0:03:01.5]} 6. Nbc3 {[%clk 0:03:01.7]} 6... Nf6 {[%clk 0:02:55]}
7. a3 {[%clk 0:03:00.1]} 7... O-O {[%clk 0:02:54.8]} 8. Rb1 {[%clk 0:03:00.7]}
8... a5 {[%clk 0:02:53.6]} 9. Nb5 {[%clk 0:02:59.7]} 9... Nd7 {[%clk 0:02:52.2]}
10. c4 {[%clk 0:02:58.6]} 10... Nde5 {[%clk 0:02:45.9]} 11. d3 {[%clk
0:02:57.9]} 11... e6 {[%clk 0:02:38.4]} 12. h3 {[%clk 0:02:54.2]} 12... Qe7
{[%clk 0:02:34.4]} 13. f4 {[%clk 0:02:54]} 13... Nd7 {[%clk 0:02:34.5]} 14. Kh2
{[%clk 0:02:51.3]} 14... Nd4 {[%clk 0:02:34.7]} 15. Nexd4 {[%clk 0:02:49.1]}
15... cxd4 {[%clk 0:02:35.6]} 16. b4 {[%clk 0:02:48]} 16... axb4 {[%clk
0:02:35.3]} 17. axb4 {[%clk 0:02:48.3]} 17... f5 {[%clk 0:02:35.5]} 18. Bb2
{[%clk 0:02:46.5]} 18... fxe4 {[%clk 0:02:32.4]} 19. Bxe4 {[%clk 0:02:43.1]}
19... e5 {[%clk 0:02:32.5]} 20. Nc7 {[%clk 0:02:28.7]} 20... Rb8 {[%clk
0:02:29.9]} 21. Nd5 {[%clk 0:02:28.4]} 21... Qd8 {[%clk 0:02:28.1]} 22. Bc1
{[%clk 0:02:03.5]} 22... Nf6 {[%clk 0:02:24.1]} 23. Bg2 {[%clk 0:01:59.1]} 23...
Be6 {[%clk 0:02:22.4]} 24. Nxf6+ {[%clk 0:01:56.8]} 24... Bxf6 {[%clk
0:02:23.3]} 25. fxe5 {[%clk 0:01:57.5]} 25... dxe5 {[%clk 0:02:23.7]} 26. Bh6
{[%clk 0:01:56.8]} 26... Bg7 {[%clk 0:02:24]} 27. Bxg7 {[%clk 0:01:56.5]} 27...
Kxg7 {[%clk 0:02:24.9]} 28. b5 {[%clk 0:01:51.7]} 28... Qa5 {[%clk 0:02:20]} 29.
Qe2 {[%clk 0:01:46.3]} 29... Rxf1 {[%clk 0:02:16.6]} 30. Rxf1 {[%clk 0:01:46.2]}
30... Rf8 {[%clk 0:02:16.4]} 31. Qxe5+ {[%clk 0:01:45.9]} 31... Kg8 {[%clk
0:02:12.4]} 32. Qxe6+ {[%clk 0:01:46.2]} 1-0

[Event "Late-Titled-Tuesday-Blitz-September-05-2023"]
[Site "Chess.com"]
[Date "2023.09.05"]
[Round "11"]
[White "KrokerGuy"]
[Black "Gogolev_Artemy"]
[Result "1-0"]
[WhiteElo "2511"]
[BlackElo "2442"]
[TimeControl "180+1"]
[EndTime "16:01:50 PDT"]
[Termination "KrokerGuy won by resignation"]

1. e4 {[%clk 0:03:00.9]} 1... c5 {[%clk 0:02:58.9]} 2. Nf3 {[%clk 0:03:01]} 2...
e6 {[%clk 0:02:59.4]} 3. d4 {[%clk 0:03:00.9]} 3... cxd4 {[%clk 0:03:00.3]} 4.
Nxd4 {[%clk 0:03:01.8]} 4... a6 {[%clk 0:02:59.8]} 5. Bd3 {[%clk 0:03:01.7]}
5... Bc5 {[%clk 0:02:58.8]} 6. Nb3 {[%clk 0:03:02.2]} 6... Ba7 {[%clk
0:02:59.1]} 7. O-O {[%clk 0:03:01.3]} 7... Nc6 {[%clk 0:02:58]} 8. Qg4 {[%clk
0:03:01.7]} 8... Nf6 {[%clk 0:02:56.9]} 9. Qxg7 {[%clk 0:03:02.3]} 9... Rg8
{[%clk 0:02:56.7]} 10. Qh6 {[%clk 0:03:03]} 10... Ne5 {[%clk 0:02:55.3]} 11. Bg5
{[%clk 0:03:02.6]} 11... Rg6 {[%clk 0:02:32.3]} 12. Qh4 {[%clk 0:03:02]} 12...
b5 {[%clk 0:01:16.9]} 13. Kh1 {[%clk 0:02:55.1]} 13... Bb7 {[%clk 0:01:09.6]}
14. f4 {[%clk 0:02:47.5]} 14... Nxd3 {[%clk 0:01:03.2]} 15. cxd3 {[%clk
0:02:48.4]} 15... h6 {[%clk 0:01:03]} 16. Bxh6 {[%clk 0:02:40]} 16... Ng4 {[%clk
0:00:58.7]} 17. Bg5 {[%clk 0:02:38.9]} 17... Rxg5 {[%clk 0:00:34.5]} 18. fxg5
{[%clk 0:02:39.8]} 18... Nf2+ {[%clk 0:00:23.2]} 19. Rxf2 {[%clk 0:02:38.8]}
19... Bxf2 {[%clk 0:00:24.1]} 20. Qh8+ {[%clk 0:02:34.4]} 1-0

[Event "Late-Titled-Tuesday-Blitz-September-05-2023"]
[Site "Chess.com"]
[Date "2023.09.05"]
[Round "11"]
[White "Verony64"]
[Black "olakenn"]
[Result "1-0"]
[WhiteElo "2243"]
[BlackElo "1877"]
[TimeControl "180+1"]
[EndTime "16:02:00 PDT"]
[Termination "Verony64 won on time"]

1. e4 {[%clk 0:02:59.6]} 1... c6 {[%clk 0:00:55.6]} 2. Nc3 {[%clk 0:02:57.5]}
2... d5 {[%clk 0:00:55.2]} 3. e5 {[%clk 0:02:58]} 3... Bf5 {[%clk 0:00:53.3]} 4.
f4 {[%clk 0:02:56.6]} 4... e6 {[%clk 0:00:52.2]} 5. d3 {[%clk 0:02:56.7]} 5...
h6 {[%clk 0:00:50.6]} 6. g3 {[%clk 0:02:56.8]} 6... Ne7 {[%clk 0:00:49.9]} 7.
Bg2 {[%clk 0:02:57.3]} 7... c5 {[%clk 0:00:48.2]} 8. h3 {[%clk 0:02:56.7]} 8...
Nbc6 {[%clk 0:00:44.5]} 9. Nf3 {[%clk 0:02:57]} 9... d4 {[%clk 0:00:42.5]} 10.
Ne2 {[%clk 0:02:54.3]} 10... Qb6 {[%clk 0:00:36.3]} 11. O-O {[%clk 0:02:53.1]}
11... Bh7 {[%clk 0:00:32]} 12. g4 {[%clk 0:02:47.9]} 12... Nd5 {[%clk
0:00:30.8]} 13. Ng3 {[%clk 0:02:48.2]} 13... Be7 {[%clk 0:00:25.9]} 14. Qe2
{[%clk 0:02:43.9]} 14... O-O-O {[%clk 0:00:10.9]} 15. a3 {[%clk 0:02:43.4]}
15... a6 {[%clk 0:00:05.3]} 16. Ne4 {[%clk 0:02:39.5]} 16... Qc7 {[%clk
0:00:04.5]} 17. Bd2 {[%clk 0:02:36.6]} 1-0

[Event "Late-Titled-Tuesday-Blitz-September-05-2023"]
[Site "Chess.com"]
[Date "2023.09.05"]
[Round "11"]
[White "AquivaRubinstein"]
[Black "Kosak12"]
[Result "0-1"]
[WhiteElo "2482"]
[BlackElo "2789"]
[TimeControl "180+1"]
[EndTime "16:02:44 PDT"]
[Termination "Kosak12 won by checkmate"]

1. d4 {[%clk 0:02:53.2]} 1... Nf6 {[%clk 0:02:44.1]} 2. c4 {[%clk 0:02:52.5]}
2... e6 {[%clk 0:02:44.3]} 3. Nf3 {[%clk 0:02:51.4]} 3... d5 {[%clk 0:02:44.1]}
4. Nc3 {[%clk 0:02:51.3]} 4... c5 {[%clk 0:02:44.2]} 5. cxd5 {[%clk 0:02:51.3]}
5... cxd4 {[%clk 0:02:44.6]} 6. Qa4+ {[%clk 0:02:50.2]} 6... Bd7 {[%clk
0:02:43.5]} 7. Qxd4 {[%clk 0:02:50.3]} 7... exd5 {[%clk 0:02:43.6]} 8. Nxd5
{[%clk 0:02:45]} 8... Qa5+ {[%clk 0:02:31.8]} 9. Nc3 {[%clk 0:02:40.1]} 9... Nc6
{[%clk 0:02:32.1]} 10. Qd1 {[%clk 0:02:22]} 10... Ne4 {[%clk 0:02:31.3]} 11. Bd2
{[%clk 0:02:17.9]} 11... Nxd2 {[%clk 0:02:30.1]} 12. Qxd2 {[%clk 0:02:17.9]}
12... O-O-O {[%clk 0:02:28]} 13. e3 {[%clk 0:01:54.7]} 13... Bf5 {[%clk
0:02:22]} 14. Nd4 {[%clk 0:01:45.7]} 14... Nxd4 {[%clk 0:02:18.4]} 15. exd4
{[%clk 0:01:46]} 15... Bc5 {[%clk 0:02:19.1]} 16. Be2 {[%clk 0:01:10.5]} 16...
Bxd4 {[%clk 0:02:15.2]} 17. Qc1 {[%clk 0:00:37.7]} 17... Rhe8 {[%clk 0:02:13.9]}
18. Kf1 {[%clk 0:00:35.4]} 18... Kb8 {[%clk 0:02:09.4]} 19. h3 {[%clk
0:00:24.7]} 19... Ka8 {[%clk 0:01:55.8]} 20. Bf3 {[%clk 0:00:24.1]} 20... Qb6
{[%clk 0:01:53.3]} 21. Qf4 {[%clk 0:00:20.2]} 21... Qxb2 {[%clk 0:01:47.5]} 22.
Qxf5 {[%clk 0:00:17.2]} 22... Qxf2# {[%clk 0:01:47.2]} 0-1

[Event "Late-Titled-Tuesday-Blitz-September-05-2023"]
[Site "Chess.com"]
[Date "2023.09.05"]
[Round "11"]
[White "jamengrand"]
[Black "infinitegiantkiller"]
[Result "0-1"]
[WhiteElo "2370"]
[BlackElo "2491"]
[TimeControl "180+1"]
[EndTime "16:02:49 PDT"]
[Termination "infinitegiantkiller won on time"]

1. e4 {[%clk 0:03:00.9]} 1... g6 {[%clk 0:02:59.6]} 2. d4 {[%clk 0:03:00.6]}
2... Bg7 {[%clk 0:03:00.5]} 3. Nc3 {[%clk 0:03:01]} 3... d6 {[%clk 0:03:01.4]}
4. Be3 {[%clk 0:03:00.4]} 4... Nf6 {[%clk 0:03:01.7]} 5. Qd2 {[%clk 0:02:55.1]}
5... O-O {[%clk 0:03:01.9]} 6. Bh6 {[%clk 0:02:54]} 6... c5 {[%clk 0:03:02.2]}
7. Bxg7 {[%clk 0:02:47.5]} 7... Kxg7 {[%clk 0:03:03.1]} 8. d5 {[%clk 0:02:44.5]}
8... a6 {[%clk 0:03:01.2]} 9. f4 {[%clk 0:02:41.3]} 9... b5 {[%clk 0:02:59.8]}
10. e5 {[%clk 0:02:41.6]} 10... Nfd7 {[%clk 0:02:57.1]} 11. Nf3 {[%clk
0:02:40.5]} 11... Qc7 {[%clk 0:02:53.4]} 12. Qe3 {[%clk 0:02:26.3]} 12... Bb7
{[%clk 0:02:51.3]} 13. O-O-O {[%clk 0:02:25.4]} 13... c4 {[%clk 0:02:44.6]} 14.
h4 {[%clk 0:02:23.6]} 14... Nc5 {[%clk 0:02:43.3]} 15. h5 {[%clk 0:02:22.8]}
15... Nbd7 {[%clk 0:02:37.7]} 16. hxg6 {[%clk 0:02:22.4]} 16... hxg6 {[%clk
0:02:37.5]} 17. Qd4 {[%clk 0:00:55.9]} 17... dxe5 {[%clk 0:02:28.9]} 18. fxe5
{[%clk 0:00:53.6]} 18... e6 {[%clk 0:02:29.2]} 19. dxe6 {[%clk 0:00:45]} 19...
fxe6 {[%clk 0:02:25.5]} 20. Ng5 {[%clk 0:00:44.2]} 20... Qxe5 {[%clk 0:02:02.2]}
21. Rh7+ {[%clk 0:00:29.7]} 21... Kf6 {[%clk 0:02:02]} 22. Qxe5+ {[%clk
0:00:06.6]} 22... Nxe5 {[%clk 0:02:00.5]} 0-1

[Event "Late-Titled-Tuesday-Blitz-September-05-2023"]
[Site "Chess.com"]
[Date "2023.09.05"]
[Round "11"]
[White "GaiozNigalidze"]
[Black "Russian_berezka"]
[Result "1-0"]
[WhiteElo "2783"]
[BlackElo "2613"]
[TimeControl "180+1"]
[EndTime "16:03:02 PDT"]
[Termination "GaiozNigalidze won by checkmate"]

1. d4 {[%clk 0:02:58.2]} 1... g6 {[%clk 0:02:53.5]} 2. c4 {[%clk 0:02:57.1]}
2... Bg7 {[%clk 0:02:53.4]} 3. e4 {[%clk 0:02:57.8]} 3... d6 {[%clk 0:02:52.4]}
4. Nc3 {[%clk 0:02:56.6]} 4... b6 {[%clk 0:02:51.1]} 5. h3 {[%clk 0:02:54.4]}
5... Bb7 {[%clk 0:02:51]} 6. Nf3 {[%clk 0:02:54.5]} 6... Nd7 {[%clk 0:02:49.2]}
7. Bd3 {[%clk 0:02:52.7]} 7... e6 {[%clk 0:02:49.5]} 8. O-O {[%clk 0:02:51.6]}
8... Ne7 {[%clk 0:02:49.9]} 9. Be3 {[%clk 0:02:49.5]} 9... O-O {[%clk
0:02:50.5]} 10. Qd2 {[%clk 0:02:49.7]} 10... a6 {[%clk 0:02:47]} 11. Bh6 {[%clk
0:02:49.6]} 11... c5 {[%clk 0:02:40.6]} 12. d5 {[%clk 0:02:46.7]} 12... exd5
{[%clk 0:02:36.4]} 13. exd5 {[%clk 0:02:40.7]} 13... Nf6 {[%clk 0:02:34]} 14.
Rae1 {[%clk 0:02:33.7]} 14... Bc8 {[%clk 0:02:31.6]} 15. g4 {[%clk 0:02:25]}
15... Nxg4 {[%clk 0:02:19.2]} 16. hxg4 {[%clk 0:02:19.5]} 16... Bxg4 {[%clk
0:02:20.1]} 17. Bxg7 {[%clk 0:01:55.2]} 17... Kxg7 {[%clk 0:02:19.2]} 18. Qg5
{[%clk 0:01:43]} 18... Bxf3 {[%clk 0:02:14.6]} 19. Qxe7 {[%clk 0:01:19.8]} 19...
Qc8 {[%clk 0:02:13.8]} 20. Qxd6 {[%clk 0:00:58.3]} 20... Qh3 {[%clk 0:02:04.8]}
21. Qh2 {[%clk 0:00:57.6]} 21... Bg4 {[%clk 0:01:58.1]} 22. Re3 {[%clk 0:00:51]}
22... Qxh2+ {[%clk 0:01:53.4]} 23. Kxh2 {[%clk 0:00:51.9]} 23... h5 {[%clk
0:01:45]} 24. Rfe1 {[%clk 0:00:51.1]} 24... f5 {[%clk 0:01:44.1]} 25. f3 {[%clk
0:00:50.6]} 25... f4 {[%clk 0:01:41.4]} 26. Re7+ {[%clk 0:00:50.7]} 26... Kh6
{[%clk 0:01:41.6]} 27. fxg4 {[%clk 0:00:51.1]} 27... hxg4 {[%clk 0:01:42.5]} 28.
R1e6 {[%clk 0:00:50.6]} 28... Rg8 {[%clk 0:01:38.4]} 29. Rf7 {[%clk 0:00:44.7]}
29... Kg5 {[%clk 0:01:33.2]} 30. Ne4+ {[%clk 0:00:39]} 30... Kh4 {[%clk
0:01:30]} 31. Rh7# {[%clk 0:00:37.7]} 1-0